[Event "Late-Titled-Tuesday-Blitz-February-27-2024"]
[Site "Chess.com"]
[Date "2024.02.27"]
[Round "6"]
[White "Matalon"]
[Black "morte-negra"]
[Result "1-0"]
[WhiteElo "2450"]
[BlackElo "2047"]
[TimeControl "180+1"]
[EndTime "15:04:25 PST"]
[Termination "Matalon won by resignation"]

1. e4 {[%clk 0:02:56.6]} 1... c5 {[%clk 0:02:58.6]} 2. Nf3 {[%clk 0:02:56.3]}
2... e6 {[%clk 0:02:57.1]} 3. d4 {[%clk 0:02:56.5]} 3... cxd4 {[%clk 0:02:56.7]}
4. Nxd4 {[%clk 0:02:55.9]} 4... Nc6 {[%clk 0:02:57.1]} 5. Nc3 {[%clk 0:02:55.1]}
5... a6 {[%clk 0:02:57]} 6. Nxc6 {[%clk 0:02:54]} 6... bxc6 {[%clk 0:02:56.5]}
7. e5 {[%clk 0:02:54.2]} 7... d5 {[%clk 0:02:55.3]} 8. exd6 {[%clk 0:02:54.1]}
8... Bxd6 {[%clk 0:02:55.9]} 9. Ne4 {[%clk 0:02:53.9]} 9... Bb4+ {[%clk
0:02:49.4]} 10. c3 {[%clk 0:02:54.1]} 10... Qxd1+ {[%clk 0:02:48.3]} 11. Kxd1
{[%clk 0:02:53.6]} 11... Be7 {[%clk 0:02:47.1]} 12. Bf4 {[%clk 0:02:53.5]} 12...
Nf6 {[%clk 0:02:32.2]} 13. Nd6+ {[%clk 0:02:52.7]} 13... Kf8 {[%clk 0:02:23.4]}
14. Nxc8 {[%clk 0:02:49.6]} 14... Rxc8 {[%clk 0:02:21.6]} 15. Bxa6 {[%clk
0:02:50.2]} 15... Rd8+ {[%clk 0:02:14.1]} 16. Ke2 {[%clk 0:02:49.3]} 16... Nd5
{[%clk 0:02:12.6]} 17. Bd2 {[%clk 0:02:43.8]} 17... h5 {[%clk 0:02:07.9]} 18.
Bd3 {[%clk 0:02:38]} 18... g5 {[%clk 0:02:04.4]} 19. g3 {[%clk 0:02:33.1]} 19...
h4 {[%clk 0:02:02]} 20. c4 {[%clk 0:02:31.8]} 20... Nb4 {[%clk 0:01:49.7]} 21.
Be4 {[%clk 0:02:11.7]} 21... f5 {[%clk 0:01:37.9]} 22. Bc3 {[%clk 0:01:59.2]}
22... Rh6 {[%clk 0:01:20]} 23. Bb1 {[%clk 0:01:57.9]} 23... c5 {[%clk 0:01:07]}
24. Rd1 {[%clk 0:01:48.3]} 24... Nc6 {[%clk 0:01:04]} 25. Rxd8+ {[%clk
0:01:46.4]} 25... Bxd8 {[%clk 0:01:04.1]} 26. a3 {[%clk 0:01:46]} 26... Nd4+
{[%clk 0:01:02.6]} 27. Bxd4 {[%clk 0:01:45]} 27... cxd4 {[%clk 0:01:02.4]} 28.
b4 {[%clk 0:01:45.7]} 28... hxg3 {[%clk 0:00:57.9]} 29. hxg3 {[%clk 0:01:43.2]}
29... Rh1 {[%clk 0:00:57.5]} 30. a4 {[%clk 0:01:43.3]} 30... e5 {[%clk
0:00:55.1]} 31. a5 {[%clk 0:01:43]} 31... e4 {[%clk 0:00:54.6]} 32. c5 {[%clk
0:01:42.3]} 32... d3+ {[%clk 0:00:49.9]} 33. Kd2 {[%clk 0:01:40.2]} 33... g4
{[%clk 0:00:50.3]} 34. a6 {[%clk 0:01:34.3]} 34... Bg5+ {[%clk 0:00:50.5]} 35.
Kc3 {[%clk 0:01:34.3]} 35... d2 {[%clk 0:00:47.1]} 36. a7 {[%clk 0:01:33.4]}
36... d1=Q {[%clk 0:00:40.9]} 37. a8=Q+ {[%clk 0:01:33]} 37... Kg7 {[%clk
0:00:41.2]} 38. Ra7+ {[%clk 0:01:30.9]} 38... Kg6 {[%clk 0:00:15.2]} 39. Qg8+
{[%clk 0:01:30.3]} 1-0

[Event "Late-Titled-Tuesday-Blitz-February-27-2024"]
[Site "Chess.com"]
[Date "2024.02.27"]
[Round "6"]
[White "Orion2127989"]
[Black "thesupera12"]
[Result "0-1"]
[WhiteElo "2138"]
[BlackElo "2458"]
[TimeControl "180+1"]
[EndTime "15:04:26 PST"]
[Termination "thesupera12 won on time"]

1. d4 {[%clk 0:02:59.9]} 1... a6 {[%clk 0:03:00.6]} 2. Nf3 {[%clk 0:02:58.5]}
2... c5 {[%clk 0:03:00.4]} 3. d5 {[%clk 0:02:54.6]} 3... Nf6 {[%clk 0:03:00.3]}
4. c4 {[%clk 0:02:53.7]} 4... b5 {[%clk 0:02:59.5]} 5. b3 {[%clk 0:02:53.2]}
5... bxc4 {[%clk 0:02:58.4]} 6. bxc4 {[%clk 0:02:53]} 6... g6 {[%clk 0:02:59.3]}
7. Bb2 {[%clk 0:02:52]} 7... Bg7 {[%clk 0:03:00]} 8. Nbd2 {[%clk 0:02:50.5]}
8... O-O {[%clk 0:03:00.5]} 9. Qc2 {[%clk 0:02:46.8]} 9... d6 {[%clk 0:03:00.6]}
10. e4 {[%clk 0:02:45.9]} 10... Qa5 {[%clk 0:02:59.1]} 11. Bd3 {[%clk 0:02:38]}
11... Bg4 {[%clk 0:02:58]} 12. Bc3 {[%clk 0:02:34.6]} 12... Qc7 {[%clk
0:02:54.4]} 13. O-O {[%clk 0:02:31.6]} 13... Nbd7 {[%clk 0:02:51.1]} 14. h3
{[%clk 0:02:26.6]} 14... Bxf3 {[%clk 0:02:50.4]} 15. Nxf3 {[%clk 0:02:27.5]}
15... Rfb8 {[%clk 0:02:48.7]} 16. Rab1 {[%clk 0:02:25.5]} 16... Nh5 {[%clk
0:02:30.8]} 17. Bxg7 {[%clk 0:02:19.6]} 17... Kxg7 {[%clk 0:02:31.7]} 18. g3
{[%clk 0:02:15.7]} 18... Nhf6 {[%clk 0:02:29.3]} 19. Rb3 {[%clk 0:01:45.4]}
19... Rb4 {[%clk 0:02:23.1]} 20. Rfb1 {[%clk 0:01:44]} 20... Rab8 {[%clk
0:02:21.8]} 21. Qb2 {[%clk 0:01:31.3]} 21... a5 {[%clk 0:02:15.8]} 22. Qc3
{[%clk 0:00:59.9]} 22... Qb6 {[%clk 0:02:06.6]} 23. Nd2 {[%clk 0:00:55.5]} 23...
a4 {[%clk 0:02:02.9]} 24. Rxb4 {[%clk 0:00:48]} 24... cxb4 {[%clk 0:02:03.8]}
25. Qc2 {[%clk 0:00:42.9]} 25... Ne5 {[%clk 0:02:00.2]} 26. Bf1 {[%clk
0:00:33.8]} 26... Qd4 {[%clk 0:01:55]} 27. Bg2 {[%clk 0:00:22.8]} 27... Nh5
{[%clk 0:01:45.7]} 28. Kf1 {[%clk 0:00:09.6]} 28... Nf6 {[%clk 0:01:42.7]} 29.
Nf3 {[%clk 0:00:08.4]} 29... Qxe4 {[%clk 0:01:32.4]} 30. Qxe4 {[%clk 0:00:06.1]}
30... Nxe4 {[%clk 0:01:33.3]} 31. Nxe5 {[%clk 0:00:05.3]} 31... Nd2+ {[%clk
0:01:31.6]} 0-1

[Event "Late-Titled-Tuesday-Blitz-February-27-2024"]
[Site "Chess.com"]
[Date "2024.02.27"]
[Round "6"]
[White "Akhayan"]
[Black "Pelusiansky"]
[Result "1/2-1/2"]
[WhiteElo "2430"]
[BlackElo "2537"]
[TimeControl "180+1"]
[EndTime "15:04:28 PST"]
[Termination "Game drawn by repetition"]

1. e4 {[%clk 0:03:00.9]} 1... c6 {[%clk 0:02:59.6]} 2. Ne2 {[%clk 0:02:59.3]}
2... d5 {[%clk 0:02:58.9]} 3. e5 {[%clk 0:02:59.4]} 3... c5 {[%clk 0:02:56.8]}
4. d4 {[%clk 0:02:58.3]} 4... cxd4 {[%clk 0:02:50.8]} 5. Nxd4 {[%clk 0:02:57.8]}
5... Nc6 {[%clk 0:02:51]} 6. Bb5 {[%clk 0:02:56.2]} 6... Qc7 {[%clk 0:02:35.4]}
7. O-O {[%clk 0:02:54.7]} 7... a6 {[%clk 0:02:30.8]} 8. Bxc6+ {[%clk 0:02:54.2]}
8... bxc6 {[%clk 0:02:31.7]} 9. e6 {[%clk 0:02:52.1]} 9... fxe6 {[%clk
0:02:29.1]} 10. Qh5+ {[%clk 0:02:44.1]} 10... g6 {[%clk 0:02:28.6]} 11. Qe2
{[%clk 0:02:43.2]} 11... e5 {[%clk 0:02:27.7]} 12. Nb3 {[%clk 0:02:13]} 12...
Nf6 {[%clk 0:02:17.6]} 13. Re1 {[%clk 0:02:09]} 13... e4 {[%clk 0:02:15.5]} 14.
c4 {[%clk 0:02:04.3]} 14... Bg4 {[%clk 0:02:10.9]} 15. f3 {[%clk 0:02:02.4]}
15... exf3 {[%clk 0:02:08.4]} 16. gxf3 {[%clk 0:02:03]} 16... Bc8 {[%clk
0:01:56.8]} 17. cxd5 {[%clk 0:02:01.8]} 17... cxd5 {[%clk 0:01:52.2]} 18. Nc3
{[%clk 0:01:57.4]} 18... Bg7 {[%clk 0:01:45.2]} 19. Bg5 {[%clk 0:01:57.9]} 19...
Bb7 {[%clk 0:01:40.8]} 20. Rac1 {[%clk 0:01:55.1]} 20... Qd6 {[%clk 0:01:37.3]}
21. Bf4 {[%clk 0:01:45.7]} 21... Qb6+ {[%clk 0:01:24.4]} 22. Be3 {[%clk
0:01:45.6]} 22... Qd8 {[%clk 0:01:11]} 23. Bc5 {[%clk 0:01:40.3]} 23... Bf8
{[%clk 0:01:10.4]} 24. Qe6 {[%clk 0:01:35]} 24... Nh5 {[%clk 0:01:02.2]} 25. Bb6
{[%clk 0:01:06.9]} 25... Qd7 {[%clk 0:01:00.3]} 26. Qxd7+ {[%clk 0:01:05.7]}
26... Kxd7 {[%clk 0:01:00.5]} 27. Nc5+ {[%clk 0:01:04.5]} 27... Kc8 {[%clk
0:00:58.4]} 28. N3a4 {[%clk 0:00:54.4]} 28... Bc6 {[%clk 0:00:57.1]} 29. Ne6
{[%clk 0:00:51]} 29... Kb7 {[%clk 0:00:56.8]} 30. Nec5+ {[%clk 0:00:46.7]} 30...
Kc8 {[%clk 0:00:55.2]} 31. Ne6 {[%clk 0:00:47]} 31... Kb7 {[%clk 0:00:50.3]} 32.
Nec5+ {[%clk 0:00:36.8]} 32... Kc8 {[%clk 0:00:50.3]} 1/2-1/2

[Event "Late-Titled-Tuesday-Blitz-February-27-2024"]
[Site "Chess.com"]
[Date "2024.02.27"]
[Round "6"]
[White "ElHelvetico"]
[Black "Nouali_Mohamed"]
[Result "1-0"]
[WhiteElo "2740"]
[BlackElo "2521"]
[TimeControl "180+1"]
[EndTime "15:04:34 PST"]
[Termination "ElHelvetico won by checkmate"]

1. c4 {[%clk 0:03:00.9]} 1... Nf6 {[%clk 0:02:59.4]} 2. Nc3 {[%clk 0:03:00.2]}
2... g6 {[%clk 0:02:59.8]} 3. d4 {[%clk 0:03:00.3]} 3... Bg7 {[%clk 0:02:59.8]}
4. e4 {[%clk 0:03:01]} 4... d6 {[%clk 0:02:59.8]} 5. Nf3 {[%clk 0:02:59.1]} 5...
O-O {[%clk 0:02:58.4]} 6. Be2 {[%clk 0:02:59.7]} 6... c5 {[%clk 0:02:58.3]} 7.
d5 {[%clk 0:02:56.4]} 7... a6 {[%clk 0:02:58.4]} 8. a4 {[%clk 0:02:55.6]} 8...
e6 {[%clk 0:02:53.9]} 9. h3 {[%clk 0:02:55.2]} 9... exd5 {[%clk 0:02:52.8]} 10.
exd5 {[%clk 0:02:54]} 10... Re8 {[%clk 0:02:52.7]} 11. O-O {[%clk 0:02:53.6]}
11... Bf5 {[%clk 0:02:17.4]} 12. Nh4 {[%clk 0:02:53.1]} 12... Bc8 {[%clk
0:01:54.3]} 13. Bd3 {[%clk 0:02:52.2]} 13... Nbd7 {[%clk 0:01:50.9]} 14. Nf3
{[%clk 0:02:52.2]} 14... Ne5 {[%clk 0:01:43.9]} 15. Nxe5 {[%clk 0:02:52.1]}
15... dxe5 {[%clk 0:01:29.9]} 16. Re1 {[%clk 0:02:51.5]} 16... Qd6 {[%clk
0:01:27.3]} 17. a5 {[%clk 0:02:48.3]} 17... Bd7 {[%clk 0:01:26.8]} 18. Bg5
{[%clk 0:02:39.2]} 18... Rac8 {[%clk 0:00:53.9]} 19. Qf3 {[%clk 0:02:35.5]}
19... h6 {[%clk 0:00:41.3]} 20. Bh4 {[%clk 0:02:25.1]} 20... g5 {[%clk
0:00:30.5]} 21. Bg3 {[%clk 0:02:24.5]} 21... g4 {[%clk 0:00:30.9]} 22. hxg4
{[%clk 0:02:17.5]} 22... Bxg4 {[%clk 0:00:31.8]} 23. Ne4 {[%clk 0:02:17.7]}
23... Nxe4 {[%clk 0:00:27.9]} 24. Qxg4 {[%clk 0:02:15.9]} 24... Nxg3 {[%clk
0:00:16]} 25. Qxg3 {[%clk 0:02:16.1]} 25... Kf8 {[%clk 0:00:11.1]} 26. Re4
{[%clk 0:02:11.6]} 26... Rc7 {[%clk 0:00:09.8]} 27. Rg4 {[%clk 0:02:04.6]} 27...
f6 {[%clk 0:00:04.6]} 28. Bf5 {[%clk 0:01:59.4]} 28... Rd8 {[%clk 0:00:03.6]}
29. Be6 {[%clk 0:01:45.3]} 29... Re7 {[%clk 0:00:03.5]} 30. Re1 {[%clk
0:01:42.2]} 30... Rxe6 {[%clk 0:00:02.9]} 31. Rxg7 {[%clk 0:01:21.4]} 31... Ree8
{[%clk 0:00:02.1]} 32. Rg8+ {[%clk 0:01:20.4]} 32... Ke7 {[%clk 0:00:01.6]} 33.
Qg7# {[%clk 0:01:21.3]} 1-0

[Event "Late-Titled-Tuesday-Blitz-February-27-2024"]
[Site "Chess.com"]
[Date "2024.02.27"]
[Round "6"]
[White "Godzillator"]
[Black "Flaccidmoves"]
[Result "1-0"]
[WhiteElo "2356"]
[BlackElo "2445"]
[TimeControl "180+1"]
[EndTime "15:04:34 PST"]
[Termination "Godzillator won on time"]

1. Nf3 {[%clk 0:03:00.9]} 1... c5 {[%clk 0:02:57.8]} 2. c3 {[%clk 0:03:00.7]}
2... d5 {[%clk 0:02:54.4]} 3. d4 {[%clk 0:03:00.9]} 3... e6 {[%clk 0:02:51.8]}
4. a3 {[%clk 0:02:57.8]} 4... Nf6 {[%clk 0:02:50.3]} 5. Bf4 {[%clk 0:02:55.6]}
5... Bd6 {[%clk 0:02:49]} 6. Bg3 {[%clk 0:02:55.1]} 6... O-O {[%clk 0:02:47.3]}
7. e3 {[%clk 0:02:54.9]} 7... b6 {[%clk 0:02:46.5]} 8. Bd3 {[%clk 0:02:54.3]}
8... Ba6 {[%clk 0:02:45.8]} 9. Bxa6 {[%clk 0:02:51.8]} 9... Nxa6 {[%clk
0:02:46.7]} 10. Nbd2 {[%clk 0:02:51]} 10... Nb8 {[%clk 0:02:41.7]} 11. O-O
{[%clk 0:02:45.2]} 11... Nc6 {[%clk 0:02:40.9]} 12. b4 {[%clk 0:02:41.9]} 12...
Bxg3 {[%clk 0:02:32.5]} 13. hxg3 {[%clk 0:02:41.4]} 13... Qd6 {[%clk 0:02:32.4]}
14. bxc5 {[%clk 0:02:37.3]} 14... bxc5 {[%clk 0:02:32]} 15. Nb3 {[%clk
0:02:37.5]} 15... c4 {[%clk 0:02:28.3]} 16. Nc5 {[%clk 0:02:37.3]} 16... e5
{[%clk 0:02:28.2]} 17. Rb1 {[%clk 0:02:34.4]} 17... Rab8 {[%clk 0:02:18.3]} 18.
Qa4 {[%clk 0:02:33.7]} 18... Rb6 {[%clk 0:02:10.3]} 19. Nb7 {[%clk 0:02:03.9]}
19... Qc7 {[%clk 0:01:53.2]} 20. dxe5 {[%clk 0:02:03.8]} 20... Ne4 {[%clk
0:01:47.8]} 21. Rxb6 {[%clk 0:01:52]} 21... axb6 {[%clk 0:01:47.4]} 22. Nd6
{[%clk 0:01:49.4]} 22... Nxd6 {[%clk 0:01:34.7]} 23. exd6 {[%clk 0:01:48.9]}
23... Qxd6 {[%clk 0:01:35.6]} 24. Nd4 {[%clk 0:01:47.4]} 24... Nxd4 {[%clk
0:01:31.2]} 25. exd4 {[%clk 0:01:47.3]} 25... Qg6 {[%clk 0:01:10.1]} 26. Qd7
{[%clk 0:01:42.8]} 26... Qd3 {[%clk 0:00:59]} 27. Qxd5 {[%clk 0:01:40]} 27...
Qxc3 {[%clk 0:00:58.5]} 28. Rb1 {[%clk 0:01:31.9]} 28... Qd3 {[%clk 0:00:40.6]}
29. Rxb6 {[%clk 0:01:28.4]} 29... c3 {[%clk 0:00:40.2]} 30. Rc6 {[%clk 0:01:23]}
30... c2 {[%clk 0:00:33.8]} 31. Qc5 {[%clk 0:01:23.1]} 31... h6 {[%clk
0:00:06.6]} 32. Qxc2 {[%clk 0:01:22.2]} 32... Qxa3 {[%clk 0:00:04.7]} 33. d5
{[%clk 0:01:17.4]} 1-0

[Event "Late-Titled-Tuesday-Blitz-February-27-2024"]
[Site "Chess.com"]
[Date "2024.02.27"]
[Round "6"]
[White "GoValya"]
[Black "cthake"]
[Result "1-0"]
[WhiteElo "2257"]
[BlackElo "1820"]
[TimeControl "180+1"]
[EndTime "15:04:36 PST"]
[Termination "GoValya won by resignation"]

1. d4 {[%clk 0:03:00.9]} 1... Nf6 {[%clk 0:02:44.1]} 2. Nf3 {[%clk 0:03:00]}
2... e6 {[%clk 0:02:42.7]} 3. g3 {[%clk 0:02:58.9]} 3... b6 {[%clk 0:02:41.5]}
4. Bg2 {[%clk 0:02:58.4]} 4... Bb7 {[%clk 0:02:41.6]} 5. O-O {[%clk 0:02:59.1]}
5... Be7 {[%clk 0:02:35.8]} 6. c4 {[%clk 0:02:59.2]} 6... d5 {[%clk 0:02:35.4]}
7. Nc3 {[%clk 0:02:59.3]} 7... O-O {[%clk 0:02:34.2]} 8. Ne5 {[%clk 0:02:59.4]}
8... c6 {[%clk 0:02:30.7]} 9. e4 {[%clk 0:02:56.4]} 9... Nbd7 {[%clk 0:02:10.8]}
10. exd5 {[%clk 0:02:51.9]} 10... cxd5 {[%clk 0:02:06.7]} 11. Bf4 {[%clk
0:02:40.1]} 11... Nxe5 {[%clk 0:02:04.7]} 12. dxe5 {[%clk 0:02:37.6]} 12... Nd7
{[%clk 0:01:23.3]} 13. cxd5 {[%clk 0:02:35.9]} 13... exd5 {[%clk 0:01:21.2]} 14.
Nxd5 {[%clk 0:02:33.1]} 14... Bxd5 {[%clk 0:01:07.3]} 15. Bxd5 {[%clk
0:02:32.8]} 15... Rc8 {[%clk 0:01:02.2]} 16. e6 {[%clk 0:02:32.7]} 16... Nf6
{[%clk 0:00:51.2]} 17. exf7+ {[%clk 0:02:32.5]} 17... Kh8 {[%clk 0:00:51.2]} 18.
Bb3 {[%clk 0:02:28.7]} 18... Bc5 {[%clk 0:00:42.6]} 19. Qxd8 {[%clk 0:02:16.7]}
19... Rcxd8 {[%clk 0:00:42.1]} 20. Kg2 {[%clk 0:02:06.7]} 20... h6 {[%clk
0:00:39.6]} 21. Rad1 {[%clk 0:02:05.2]} 21... g5 {[%clk 0:00:32.7]} 22. Be5
{[%clk 0:01:52.4]} 22... Kg7 {[%clk 0:00:32.4]} 23. f4 {[%clk 0:01:46.4]} 23...
Rxd1 {[%clk 0:00:25.5]} 24. Rxd1 {[%clk 0:01:45.3]} 24... gxf4 {[%clk
0:00:23.8]} 25. gxf4 {[%clk 0:01:35.9]} 25... Kg6 {[%clk 0:00:24.1]} 26. Kf3
{[%clk 0:01:05.6]} 26... h5 {[%clk 0:00:20.1]} 27. Rd2 {[%clk 0:01:01]} 27... h4
{[%clk 0:00:19.3]} 28. Rg2+ {[%clk 0:00:59.2]} 1-0

[Event "Late-Titled-Tuesday-Blitz-February-27-2024"]
[Site "Chess.com"]
[Date "2024.02.27"]
[Round "6"]
[White "boguszp"]
[Black "zsizsi99"]
[Result "0-1"]
[WhiteElo "2031"]
[BlackElo "2448"]
[TimeControl "180+1"]
[EndTime "15:04:37 PST"]
[Termination "zsizsi99 won by checkmate"]

1. d4 {[%clk 0:03:00.9]} 1... Nf6 {[%clk 0:02:53.8]} 2. Nf3 {[%clk 0:02:58.6]}
2... c5 {[%clk 0:02:47.9]} 3. c3 {[%clk 0:02:56.1]} 3... b6 {[%clk 0:02:46.9]}
4. Bf4 {[%clk 0:02:54.5]} 4... Bb7 {[%clk 0:02:47.1]} 5. e3 {[%clk 0:02:55.1]}
5... g6 {[%clk 0:02:46.3]} 6. Be2 {[%clk 0:02:54.8]} 6... Bg7 {[%clk 0:02:46]}
7. O-O {[%clk 0:02:55.2]} 7... O-O {[%clk 0:02:43.9]} 8. h3 {[%clk 0:02:55.4]}
8... d6 {[%clk 0:02:44.1]} 9. Nbd2 {[%clk 0:02:54.7]} 9... Ne4 {[%clk
0:02:43.8]} 10. Nxe4 {[%clk 0:02:53.4]} 10... Bxe4 {[%clk 0:02:43.9]} 11. Nd2
{[%clk 0:02:54.1]} 11... Bb7 {[%clk 0:02:43.8]} 12. Bf3 {[%clk 0:02:54.8]} 12...
Nc6 {[%clk 0:02:43.6]} 13. Rc1 {[%clk 0:02:50.8]} 13... e5 {[%clk 0:02:39.5]}
14. dxe5 {[%clk 0:02:44.9]} 14... dxe5 {[%clk 0:02:38.1]} 15. Bh2 {[%clk
0:02:44.6]} 15... Qe7 {[%clk 0:02:30.2]} 16. e4 {[%clk 0:02:33.4]} 16... Rfd8
{[%clk 0:02:19.7]} 17. Qe2 {[%clk 0:02:31.3]} 17... Qe6 {[%clk 0:02:07.4]} 18.
b3 {[%clk 0:02:15.9]} 18... a5 {[%clk 0:01:48.1]} 19. Rfd1 {[%clk 0:02:12.1]}
19... Bh6 {[%clk 0:01:44.6]} 20. Rb1 {[%clk 0:01:53.9]} 20... Ba6 {[%clk
0:01:26]} 21. c4 {[%clk 0:01:39.8]} 21... Nd4 {[%clk 0:01:19.7]} 22. Qf1 {[%clk
0:01:33.6]} 22... Bxd2 {[%clk 0:01:16.3]} 23. Bg4 {[%clk 0:01:29.6]} 23... f5
{[%clk 0:01:14.7]} 24. exf5 {[%clk 0:01:25]} 24... gxf5 {[%clk 0:01:15.3]} 25.
Rxd2 {[%clk 0:01:14.9]} 25... fxg4 {[%clk 0:01:15]} 26. Rbd1 {[%clk 0:01:06.6]}
26... gxh3 {[%clk 0:01:12]} 27. gxh3 {[%clk 0:01:00]} 27... Bb7 {[%clk 0:01:12]}
28. Bg3 {[%clk 0:00:55.1]} 28... Nf3+ {[%clk 0:01:10.9]} 29. Kh1 {[%clk
0:00:52.7]} 29... Nxd2+ {[%clk 0:01:11]} 30. Kh2 {[%clk 0:00:50]} 30... Nxf1+
{[%clk 0:01:10.3]} 31. Rxf1 {[%clk 0:00:47.7]} 31... Qc6 {[%clk 0:01:10]} 32.
Rg1 {[%clk 0:00:46.2]} 32... Kf7 {[%clk 0:01:03.1]} 33. Bxe5 {[%clk 0:00:41.7]}
33... Rd1 {[%clk 0:01:02.9]} 34. Rg7+ {[%clk 0:00:35]} 34... Ke6 {[%clk
0:01:02.6]} 35. Rxh7 {[%clk 0:00:20]} 35... Qg2# {[%clk 0:01:01.4]} 0-1

[Event "Late-Titled-Tuesday-Blitz-February-27-2024"]
[Site "Chess.com"]
[Date "2024.02.27"]
[Round "6"]
[White "cristianserban1"]
[Black "janhelmer03"]
[Result "0-1"]
[WhiteElo "2486"]
[BlackElo "2374"]
[TimeControl "180+1"]
[EndTime "15:04:37 PST"]
[Termination "janhelmer03 won by resignation"]

1. Nf3 {[%clk 0:02:57.6]} 1... d5 {[%clk 0:02:59.2]} 2. g3 {[%clk 0:02:58.5]}
2... Nf6 {[%clk 0:02:58.1]} 3. Bg2 {[%clk 0:02:59]} 3... Bf5 {[%clk 0:02:54.3]}
4. d3 {[%clk 0:02:55.7]} 4... c6 {[%clk 0:02:53.1]} 5. O-O {[%clk 0:02:54.4]}
5... Nbd7 {[%clk 0:02:51.8]} 6. Nh4 {[%clk 0:02:53.6]} 6... Bg6 {[%clk
0:02:50.5]} 7. Nxg6 {[%clk 0:02:41.2]} 7... hxg6 {[%clk 0:02:51.4]} 8. e4 {[%clk
0:02:42.1]} 8... e6 {[%clk 0:02:47.1]} 9. b3 {[%clk 0:02:33]} 9... Be7 {[%clk
0:02:45.8]} 10. Bb2 {[%clk 0:02:32.6]} 10... Qb6 {[%clk 0:02:40.9]} 11. Nd2
{[%clk 0:02:28.7]} 11... a5 {[%clk 0:02:38.3]} 12. a3 {[%clk 0:02:28.6]} 12...
O-O-O {[%clk 0:02:26.3]} 13. Qe2 {[%clk 0:02:18.4]} 13... Rh7 {[%clk 0:02:20.2]}
14. e5 {[%clk 0:02:11.8]} 14... Nh5 {[%clk 0:02:12.2]} 15. b4 {[%clk 0:01:53.4]}
15... Rdh8 {[%clk 0:02:08.7]} 16. Bc3 {[%clk 0:01:47.7]} 16... a4 {[%clk
0:02:05.8]} 17. Rfb1 {[%clk 0:01:36.7]} 17... Bg5 {[%clk 0:01:59.4]} 18. Nf3
{[%clk 0:01:33.4]} 18... Be7 {[%clk 0:01:58.6]} 19. Bd4 {[%clk 0:01:33.5]} 19...
Qc7 {[%clk 0:01:57.1]} 20. c4 {[%clk 0:01:33.1]} 20... dxc4 {[%clk 0:01:53.8]}
21. dxc4 {[%clk 0:01:33.1]} 21... g5 {[%clk 0:01:50.7]} 22. c5 {[%clk
0:00:47.7]} 22... Nf8 {[%clk 0:01:34]} 23. Qc2 {[%clk 0:00:44.7]} 23... g4
{[%clk 0:01:29.3]} 24. Nd2 {[%clk 0:00:44.6]} 24... Ng6 {[%clk 0:01:21.8]} 25.
Nc4 {[%clk 0:00:44.7]} 25... Nhf4 {[%clk 0:01:16.2]} 26. gxf4 {[%clk 0:00:36.7]}
26... Nxf4 {[%clk 0:01:17.1]} 27. Qxa4 {[%clk 0:00:26.8]} 27... Rxh2 {[%clk
0:01:08.2]} 28. Nb6+ {[%clk 0:00:26.4]} 28... Qxb6 {[%clk 0:01:04.8]} 29. Qa8+
{[%clk 0:00:24.8]} 29... Kd7 {[%clk 0:01:04.4]} 30. Qxh8 {[%clk 0:00:20.6]}
30... Rxg2+ {[%clk 0:01:04.3]} 31. Kf1 {[%clk 0:00:19.3]} 31... Qb5+ {[%clk
0:01:04.4]} 0-1

[Event "Late-Titled-Tuesday-Blitz-February-27-2024"]
[Site "Chess.com"]
[Date "2024.02.27"]
[Round "6"]
[White "Brahianzevich"]
[Black "Sajkochess"]
[Result "1-0"]
[WhiteElo "2494"]
[BlackElo "2336"]
[TimeControl "180+1"]
[EndTime "15:04:51 PST"]
[Termination "Brahianzevich won by resignation"]

1. e4 {[%clk 0:02:55.6]} 1... c6 {[%clk 0:03:00.1]} 2. d4 {[%clk 0:02:55.5]}
2... d5 {[%clk 0:03:00.8]} 3. Nc3 {[%clk 0:02:55.4]} 3... dxe4 {[%clk 0:03:01]}
4. Nxe4 {[%clk 0:02:56.3]} 4... Bf5 {[%clk 0:03:01.4]} 5. Ng3 {[%clk 0:02:55.3]}
5... Bg6 {[%clk 0:03:02]} 6. Nf3 {[%clk 0:02:56.2]} 6... Nd7 {[%clk 0:03:01.6]}
7. h4 {[%clk 0:02:56.4]} 7... h6 {[%clk 0:03:02.2]} 8. h5 {[%clk 0:02:57.3]}
8... Bh7 {[%clk 0:03:02.6]} 9. Bd3 {[%clk 0:02:58]} 9... Bxd3 {[%clk 0:03:02.6]}
10. Qxd3 {[%clk 0:02:58.9]} 10... e6 {[%clk 0:03:03.1]} 11. Bd2 {[%clk
0:02:57.9]} 11... Ngf6 {[%clk 0:03:03]} 12. O-O-O {[%clk 0:02:58.5]} 12... Be7
{[%clk 0:03:03.7]} 13. Kb1 {[%clk 0:02:57]} 13... O-O {[%clk 0:03:03.6]} 14. Ne4
{[%clk 0:02:57.6]} 14... Nxe4 {[%clk 0:03:04.2]} 15. Qxe4 {[%clk 0:02:58.5]}
15... Nf6 {[%clk 0:03:04.8]} 16. Qe2 {[%clk 0:02:59.3]} 16... Qd5 {[%clk
0:03:04.4]} 17. Ne5 {[%clk 0:02:56.9]} 17... Qe4 {[%clk 0:02:56.4]} 18. Be3
{[%clk 0:02:56.3]} 18... Nd5 {[%clk 0:02:53.6]} 19. Rh3 {[%clk 0:02:51.8]} 19...
Bg5 {[%clk 0:02:17.1]} 20. Qf3 {[%clk 0:02:05.2]} 20... Qxf3 {[%clk 0:01:58.3]}
21. Rxf3 {[%clk 0:02:06.1]} 21... Nxe3 {[%clk 0:01:38.1]} 22. fxe3 {[%clk
0:02:07]} 22... f5 {[%clk 0:01:37.3]} 23. c3 {[%clk 0:01:56.2]} 23... Rad8
{[%clk 0:01:34.6]} 24. Re1 {[%clk 0:01:50.7]} 24... c5 {[%clk 0:01:06.3]} 25.
Kc2 {[%clk 0:01:40.6]} 25... Rfe8 {[%clk 0:00:55.4]} 26. g4 {[%clk 0:01:38.9]}
26... fxg4 {[%clk 0:00:50.9]} 27. Nxg4 {[%clk 0:01:38.9]} 27... c4 {[%clk
0:00:41.5]} 28. Ne5 {[%clk 0:01:35]} 28... b5 {[%clk 0:00:41.6]} 29. Nf7 {[%clk
0:01:24.9]} 29... Rf8 {[%clk 0:00:33.9]} 30. Ref1 {[%clk 0:01:24.9]} 30... Rde8
{[%clk 0:00:27]} 31. Nxg5 {[%clk 0:01:21.8]} 31... hxg5 {[%clk 0:00:25.7]} 32.
e4 {[%clk 0:01:15.4]} 32... Rf6 {[%clk 0:00:14.9]} 33. Rxf6 {[%clk 0:01:14.9]}
33... gxf6 {[%clk 0:00:15.3]} 34. Rxf6 {[%clk 0:01:15.8]} 34... Kh7 {[%clk
0:00:13]} 35. Rg6 {[%clk 0:01:09.7]} 35... Rg8 {[%clk 0:00:12]} 36. Rxg8 {[%clk
0:01:06.8]} 36... Kxg8 {[%clk 0:00:12.9]} 37. Kd2 {[%clk 0:01:07.4]} 37... Kh7
{[%clk 0:00:12.9]} 38. Ke2 {[%clk 0:01:08.3]} 38... Kh6 {[%clk 0:00:13.3]} 39.
d5 {[%clk 0:01:07.5]} 39... exd5 {[%clk 0:00:13]} 40. exd5 {[%clk 0:01:08.4]}
40... Kxh5 {[%clk 0:00:10.3]} 41. d6 {[%clk 0:01:08.1]} 1-0